fUSD/lending_fUSD_20250209
["ID","MTS","AMOUNT","RATE_DAILY","PERIOD"]
[352420605,1739093432061,-335.08,0.00010137,2]
[352420606,1739093432071,-400.17693274,0.000102,2]
[352420607,1739093432080,-349.0,0.00010219,2]
[352420608,1739093432090,-250000.0,0.0001026,2]
[352420609,1739093432101,-150.0,0.00010263,2]
[352420610,1739093432115,-500.50384354,0.00010267,2]
[352420611,1739093432124,-356.23619404,0.00010267,2]
[352420612,1739093432133,-501.87522391,0.00010267,2]
[352420613,1739093432142,-200.0,0.00010267,2]
[352420614,1739093432152,-500.0,0.00010267,2]
[352420615,1739093432162,-500.0,0.00010267,2]
[352420616,1739093432171,-500.0,0.00010267,2]
[352420617,1739093432184,-500.0,0.00010267,2]
[352420618,1739093432194,-500.0,0.00010267,2]
[352420619,1739093432203,-500.0,0.00010267,2]
[352420620,1739093432212,-500.0,0.00010267,2]
[352420621,1739093432222,-500.0,0.00010267,2]
[352420622,1739093432233,-500.0,0.00010267,2]
[352420623,1739093432242,-500.0,0.00010267,2]
[352420624,1739093432253,-500.0,0.00010267,2]
[352420625,1739093432262,-500.0,0.00010267,2]
[352420626,1739093432272,-500.0,0.00010267,2]
[352420627,1739093432281,-500.0,0.00010267,2]
[352420628,1739093432291,-500.0,0.00010267,2]
[352420629,1739093432300,-500.0,0.00010267,2]
[352420630,1739093432310,-500.0,0.00010267,2]
[352420631,1739093432319,-500.0,0.00010267,2]
[352420632,1739093432328,-502.97012576,0.00010267,2]
[352420633,1739093432337,-557.04,0.00010267,2]
[352420634,1739093432347,-500.0,0.00010267,2]
[352420635,1739093432356,-500.0,0.00010267,2]
[352420636,1739093432365,-500.0,0.00010267,2]
[352420637,1739093432374,-500.0,0.00010267,2]
[352420638,1739093432383,-751.66,0.00010267,2]
[352420639,1739093432392,-545.98,0.00010267,2]
[352420640,1739093432401,-793.75,0.00010267,2]
[352420641,1739093432411,-912.09,0.00010267,2]
[352420642,1739093432420,-500.0,0.00010267,2]
[352420643,1739093432429,-552.76,0.00010267,2]
[352420644,1739093432439,-573.7,0.00010267,2]
[352420645,1739093432448,-444.46,0.00010267,2]
[352420646,1739093432457,-500.0,0.00010267,2]
[352420647,1739093432466,-514.55,0.00010267,2]
[352420648,1739093432475,-500.0,0.00010267,2]
[352420649,1739093432484,-650.03,0.00010267,2]
[352420650,1739093432493,-4000.0,0.00010267,2]
[352420651,1739093432502,-376.93,0.00010267,2]
[352420652,1739093432512,-379.43,0.00010268,2]
[352420653,1739093432521,-500.0,0.00010268,2]
[352420654,1739093432535,-500.0,0.00010268,2]
[352420656,1739093432548,-500.0,0.00010268,2]
[352420659,1739093432560,-634.94,0.00010268,2]
[352420661,1739093432572,-500.0,0.00010268,2]
[352420663,1739093432582,-500.0,0.00010268,2]
[352420665,1739093432592,-500.0,0.00010268,2]
[352420667,1739093432603,-794.88,0.00010268,2]
[352420669,1739093432615,-516.365633,0.00010301,2]
[352420672,1739093432627,-623.94,0.00010401,2]
[352420674,1739093432638,-500.0,0.00010401,2]
[352420676,1739093432650,-500.0,0.00010401,2]
[352420678,1739093432661,-500.0,0.00010401,2]
[352420680,1739093432674,-500.0,0.00010401,2]
[352420683,1739093432686,-500.0,0.00010401,2]
[352420685,1739093432697,-500.0,0.00010401,2]
[352420686,1739093432707,-500.0,0.00010401,2]
[352420688,1739093432717,-669.84,0.00010401,2]
[352420690,1739093432727,-748.14,0.00010401,2]
[352420691,1739093432739,-500.0,0.00010401,2]
[352420692,1739093432750,-500.0,0.00010401,2]
[352420693,1739093432761,-500.0,0.00010401,2]
[352420694,1739093432772,-500.0,0.00010401,2]
[352420695,1739093432786,-500.0,0.00010401,2]
[352420696,1739093432798,-500.0,0.00010401,2]
[352420697,1739093432809,-762.76,0.00010401,2]
[352420698,1739093432821,-500.0,0.00010401,2]
[352420699,1739093432832,-500.0,0.00010401,2]
[352420700,1739093432843,-576.71,0.00010401,2]
[352420701,1739093432855,-500.0,0.00010401,2]
[352420702,1739093432867,-500.0,0.00010401,2]
[352420703,1739093432879,-500.0,0.00010401,2]
[352420704,1739093432890,-500.0,0.00010401,2]
[352420705,1739093432901,-500.0,0.00010401,2]
[352420706,1739093432913,-673.22,0.00010401,2]
[352420707,1739093432924,-238.063774,0.00010401,2]
[352420709,1739093432936,-500.0,0.00010401,2]
[352420711,1739093432948,-500.0,0.00010401,2]
[352420714,1739093432959,-500.0,0.00010401,2]
[352420716,1739093432970,-509.59,0.00010401,2]
[352420718,1739093432982,-500.0,0.00010401,2]
[352420720,1739093432994,-500.0,0.00010401,2]
[352420723,1739093433004,-500.0,0.00010401,2]
[352420725,1739093433015,-764.53,0.00010401,2]
[352420727,1739093433026,-518.85783118,0.00010401,2]
[352420729,1739093433041,-527.59,0.00010401,2]
[352420730,1739093433053,-500.0,0.00010401,2]
[352420731,1739093433065,-500.0,0.00010401,2]
[352420732,1739093433076,-179.542554,0.00010401,2]
[352420733,1739093433087,-598.52,0.00010401,2]
[352420734,1739093433099,-500.0,0.00010401,2]
[352420735,1739093433113,-500.0,0.00010401,2]
[352420736,1739093433124,-790.4,0.00010401,2]
[352420737,1739093433135,-500.0,0.00010401,2]
[352420738,1739093433146,-500.0,0.00010401,2]
[352420739,1739093433158,-799.74,0.00010401,2]
[352420740,1739093433171,-560.95,0.00010401,2]
[352420741,1739093433185,-500.0,0.00010401,2]
[352420742,1739093433195,-700.59,0.00010401,2]
[352420743,1739093433205,-500.0,0.00010401,2]
[352420744,1739093433215,-506.70233815,0.00010401,2]
[352420745,1739093433225,-500.0,0.00010401,2]
[352420746,1739093433235,-500.0,0.00010401,2]
[352420747,1739093433246,-1061.78,0.00010401,2]
[352420748,1739093433258,-158.970918,0.00010401,2]
[352420749,1739093433271,-884.41,0.00010401,2]
[352420750,1739093433283,-549.77,0.00010401,2]
[352420751,1739093433294,-505.68,0.00010401,2]
[352420752,1739093433306,-500.0,0.00010401,2]
[352420753,1739093433317,-769.49,0.00010401,2]
[352420754,1739093433328,-619.63,0.00010401,2]
[352420755,1739093433338,-500.0,0.00010401,2]
[352420756,1739093433349,-291.0930774,0.00010401,2]
[352420757,1739093433359,-693.66,0.00010401,2]
[352420758,1739093433370,-500.0,0.00010401,2]
[352420759,1739093433380,-629.58,0.00010401,2]
[352420760,1739093433391,-500.0,0.00010401,2]
[352420761,1739093433401,-500.5612391,0.00010401,2]
[352420762,1739093433412,-501.86133713,0.00010401,2]
[352420763,1739093433422,-823.3,0.00010401,2]
[352420764,1739093433432,-500.62881868,0.00010401,2]
[352420765,1739093433447,-500.0,0.00010401,2]
[352420766,1739093433457,-821.47,0.00010401,2]
[352420767,1739093433468,-500.0,0.00010401,2]
[352420768,1739093433479,-500.0,0.00010401,2]
[352420769,1739093433490,-708.97,0.00010401,2]
[352420770,1739093433500,-757.96,0.00010401,2]
[352420771,1739093433511,-251.90601791,0.00010401,2]
[352420772,1739093433521,-641.6581144,0.00010401,2]
[352420773,1739093433532,-1087.29,0.00010401,2]
[352420774,1739093433543,-500.0,0.00010401,2]
[352420775,1739093433554,-500.0,0.00010401,2]
[352420776,1739093433564,-502.61689413,0.00010401,2]
[352420777,1739093433575,-1753.75,0.00010401,2]
[352420778,1739093433586,-500.0,0.00010401,2]
[352420779,1739093433597,-1730.61,0.00010401,2]
[352420780,1739093433608,-500.0,0.00010401,2]
[352420781,1739093433618,-500.0,0.00010401,2]
[352420782,1739093433629,-848.88,0.00010401,2]
[352420783,1739093433640,-1029.87,0.00010401,2]
[352420784,1739093433650,-547.81,0.00010401,2]
[352420785,1739093433661,-764.93,0.00010401,2]
[352420786,1739093433672,-783.68,0.00010401,2]
[352420787,1739093433683,-1197.8,0.00010401,2]
[352420788,1739093433694,-633.47,0.00010401,2]
[352420789,1739093433705,-1331.84,0.00010401,2]
[352420790,1739093433715,-585.06,0.00010401,2]
[352420791,1739093433726,-500.0,0.00010401,2]
[352420792,1739093433737,-500.0,0.00010401,2]
[352420793,1739093433748,-500.0,0.00010401,2]
[352420794,1739093433759,-918.48,0.00010401,2]
[352420795,1739093433770,-797.81,0.00010401,2]
[352420796,1739093433780,-500.0,0.00010401,2]
[352420797,1739093433793,-500.0,0.00010401,2]
[352420798,1739093433804,-500.0,0.00010401,2]
[352420799,1739093433815,-1135.51,0.00010401,2]
[352420800,1739093433826,-500.0,0.00010401,2]
[352420801,1739093433837,-500.0,0.00010401,2]
[352420802,1739093433847,-1781.88,0.00010401,2]
[352420803,1739093433858,-1130.28,0.00010401,2]
[352420804,1739093433868,-500.0,0.00010401,2]
[352420805,1739093433878,-500.0,0.00010401,2]
[352420806,1739093433889,-2486.97,0.00010401,2]
[352420807,1739093433900,-503.88026216,0.00010401,2]
[352420808,1739093433910,-1439.82,0.00010401,2]
[352420809,1739093433921,-1176.89,0.00010401,2]
[352420810,1739093433932,-504.47112407,0.00010401,2]
[352420811,1739093433943,-1603.9,0.00010401,2]
[352420812,1739093433953,-1308.98,0.00010401,2]
[352420813,1739093433964,-1740.19,0.00010401,2]
[352420814,1739093433975,-809.09,0.00010401,2]
[352420815,1739093433985,-540.18,0.00010401,2]
[352420816,1739093433996,-500.0,0.00010401,2]
[352420817,1739093434007,-503.14,0.00010401,2]
[352420818,1739093434018,-3818.74,0.00010401,2]
[352420819,1739093434028,-744.75,0.00010401,2]
[352420820,1739093434041,-950.81,0.00010401,2]
[352420821,1739093434052,-500.0,0.00010401,2]
[352420822,1739093434063,-500.0,0.00010401,2]
[352420823,1739093434073,-1366.19,0.00010401,2]
[352420824,1739093434084,-899.22,0.00010401,2]
[352420825,1739093434095,-1133.86,0.00010401,2]
[352420826,1739093434113,-675.02,0.00010401,2]
[352420827,1739093434129,-622.79,0.00010401,2]
[352420828,1739093434141,-500.0,0.00010401,2]
[352420829,1739093434152,-666.01,0.00010401,2]
[352420830,1739093434164,-1003.73,0.00010401,2]
[352420831,1739093434175,-1173.28,0.00010401,2]
[352420832,1739093434186,-2140.7,0.00010401,2]
[352420833,1739093434196,-500.0,0.00010401,2]
[352420834,1739093434207,-804.39,0.00010401,2]
[352420835,1739093434217,-699.86,0.00010401,2]
[352420836,1739093434227,-1038.03,0.00010401,2]
[352420837,1739093434238,-1534.57,0.00010401,2]
[352420838,1739093434248,-500.0,0.00010401,2]
[352420839,1739093434259,-1789.5,0.00010401,2]
[352420840,1739093434269,-739.77,0.00010401,2]
[352420841,1739093434280,-500.0,0.00010401,2]
[352420842,1739093434291,-2875.24,0.00010401,2]
[352420843,1739093434302,-1312.87,0.00010401,2]
[352420844,1739093434313,-1362.18,0.00010401,2]
[352420845,1739093434323,-1008.52,0.00010401,2]
[352420846,1739093434334,-500.0,0.00010401,2]
[352420847,1739093434344,-1651.8,0.00010401,2]
[352420848,1739093434355,-500.0,0.00010401,2]
[352420849,1739093434365,-500.0,0.00010401,2]
[352420850,1739093434375,-532.11,0.00010401,2]
[352420851,1739093434386,-1345.09,0.00010401,2]
[352420852,1739093434396,-1772.27,0.00010401,2]
[352420853,1739093434406,-1375.84,0.00010401,2]
[352420854,1739093434417,-1273.43,0.00010401,2]
[352420855,1739093434428,-500.0,0.00010401,2]
[352420856,1739093434439,-906.11,0.00010401,2]
[352420857,1739093434449,-500.0,0.00010401,2]
[352420858,1739093434461,-1298.96,0.00010401,2]
[352420859,1739093434471,-1374.21,0.00010401,2]
[352420860,1739093434483,-822.1,0.00010401,2]
[352420861,1739093434500,-578.75,0.00010401,2]
[352420862,1739093434510,-500.0,0.00010401,2]
[352420863,1739093434520,-1313.23,0.00010401,2]
[352420864,1739093434530,-544.38,0.00010401,2]
[352420865,1739093434543,-1324.54,0.00010401,2]
[352420866,1739093434554,-500.63,0.00010401,2]
[352420867,1739093434565,-500.0,0.00010401,2]
[352420868,1739093434575,-1005.87,0.00010401,2]
[352420869,1739093434585,-1381.83,0.00010401,2]
[352420870,1739093434596,-1250.43,0.00010401,2]
[352420871,1739093434607,-561.57,0.00010401,2]
[352420872,1739093434618,-514.48,0.00010401,2]
[352420873,1739093434628,-500.0,0.00010401,2]
[352420874,1739093434639,-963.73,0.00010401,2]
[352420875,1739093434652,-911.74,0.00010401,2]
[352420876,1739093434663,-1092.4,0.00010401,2]
[352420877,1739093434673,-500.0,0.00010401,2]
[352420878,1739093434683,-940.48,0.00010401,2]
[352420879,1739093434694,-500.0,0.00010401,2]
[352420880,1739093434705,-953.19,0.00010401,2]
[352420881,1739093434715,-500.0,0.00010401,2]
[352420882,1739093434725,-500.0,0.00010401,2]
[352420883,1739093434736,-917.38,0.00010401,2]
[352420884,1739093434747,-500.0,0.00010401,2]
[352420885,1739093434758,-872.02,0.00010401,2]
[352420886,1739093434768,-540.05,0.00010401,2]
[352420887,1739093434780,-500.0,0.00010401,2]
[352420888,1739093434792,-741.57,0.00010401,2]
[352420889,1739093434803,-500.0,0.00010401,2]
[352420890,1739093434814,-995.48,0.00010401,2]
[352420891,1739093434824,-191.67178059,0.00010401,2]
[352420892,1739093434835,-500.0,0.00010401,2]
[352420893,1739093434845,-1374.19,0.00010401,2]
[352420894,1739093434856,-944.21,0.00010401,2]
[352420895,1739093434866,-500.0,0.00010401,2]
[352420896,1739093434877,-501.03571499,0.00010401,2]
[352420897,1739093434887,-1806.32,0.00010401,2]
[352420898,1739093434897,-387.54,0.00010401,2]
[352420899,1739093434907,-500.0,0.00010401,2]
[352420900,1739093434918,-500.0,0.00010401,2]
[352420901,1739093434928,-945.42,0.00010401,2]
[352420902,1739093434939,-496.34536474,0.00010402,2]
[352420903,1739093434950,-500.0,0.00010402,2]
[352420904,1739093434960,-500.0,0.00010402,2]
[352420905,1739093434970,-500.0,0.00010402,2]
[352420906,1739093434980,-500.0,0.00010402,2]
[352420907,1739093434990,-500.0,0.00010402,2]
[352420908,1739093435001,-500.0,0.00010402,2]
[352420909,1739093435011,-500.0,0.00010402,2]
[352420910,1739093435021,-500.0,0.00010402,2]
[352420911,1739093435031,-500.0,0.00010402,2]
[352420912,1739093435043,-500.0,0.00010402,2]
[352420913,1739093435053,-500.0,0.00010402,2]
[352420914,1739093435063,-500.0,0.00010402,2]
[352420915,1739093435074,-500.0,0.00010402,2]
[352420916,1739093435084,-500.0,0.00010402,2]
[352420917,1739093435094,-500.0,0.00010402,2]
[352420918,1739093435106,-500.0,0.00010402,2]
[352420919,1739093435118,-500.0,0.00010402,2]
[352420920,1739093435128,-500.0,0.00010402,2]
[352420921,1739093435138,-500.0,0.00010402,2]
[352420922,1739093435149,-500.0,0.00010402,2]
[352420923,1739093435159,-500.0,0.00010402,2]
[352420924,1739093435169,-500.0,0.00010402,2]
[352420925,1739093435180,-500.0,0.00010402,2]
[352420926,1739093435192,-500.0,0.00010402,2]
[352420927,1739093435204,-500.0,0.00010402,2]
[352420928,1739093435215,-500.0,0.00010402,2]
[352420929,1739093435226,-500.0,0.00010402,2]
[352420930,1739093435236,-500.0,0.00010402,2]
[352420931,1739093435246,-500.0,0.00010402,2]
[352420932,1739093435257,-505.31138772,0.00010402,2]
[352420933,1739093435266,-500.0,0.00010402,2]
[352420934,1739093435277,-208.96,0.00010402,2]
[352420935,1739093435289,-353.1762717,0.00010402,2]
[352420936,1739093435299,-500.0,0.00010402,2]
[352420937,1739093435309,-500.0,0.00010402,2]
[352420938,1739093435319,-500.0,0.00010402,2]
[352420939,1739093435329,-500.0,0.00010402,2]
[352420940,1739093435340,-500.0,0.00010402,2]
[352420941,1739093435350,-500.0,0.00010402,2]
[352420942,1739093435360,-500.0,0.00010402,2]
[352420943,1739093435372,-500.0,0.00010402,2]
[352420944,1739093435382,-500.0,0.00010402,2]
[352420945,1739093435392,-500.0,0.00010402,2]
[352420946,1739093435403,-500.0,0.00010402,2]
[352420947,1739093435413,-506.7716528,0.00010402,2]
[352420948,1739093435423,-500.0,0.00010402,2]
[352420949,1739093435433,-392.43,0.00010402,2]
[352420950,1739093435444,-500.0,0.00010402,2]
[352420951,1739093435454,-500.0,0.00010402,2]
[352420952,1739093435465,-507.11749815,0.00010402,2]
[352420953,1739093435478,-500.0,0.00010402,2]
[352420954,1739093435489,-225.39016656,0.00010402,2]
[352420955,1739093435499,-350.42531102,0.00010402,2]
[352420956,1739093435510,-500.0,0.00010402,2]
[352420957,1739093435520,-500.0,0.00010402,2]
[352420958,1739093435530,-500.0,0.00010402,2]
[352420959,1739093435541,-500.0,0.00010402,2]
[352420960,1739093435551,-509.9648163,0.00010402,2]
[352420961,1739093435563,-500.0,0.00010402,2]
[352420962,1739093435573,-500.0,0.00010402,2]
[352420963,1739093435584,-500.0,0.00010402,2]
[352420964,1739093435594,-476.94,0.00010402,2]
[352420965,1739093435604,-500.0,0.00010402,2]
[352420966,1739093435614,-500.0,0.00010402,2]
[352420967,1739093435625,-631.16,0.00010402,2]
[352420968,1739093435636,-172.29,0.00010402,2]
[352420969,1739093435648,-500.0,0.00010402,2]
[352420970,1739093435660,-500.0,0.00010402,2]
[352420971,1739093435672,-500.0,0.00010402,2]
[352420972,1739093435683,-500.0,0.00010402,2]
[352420973,1739093435693,-500.0,0.00010402,2]
[352420974,1739093435703,-506.314945,0.00010402,2]
[352420975,1739093435714,-546.25,0.00010402,2]
[352420976,1739093435725,-500.0,0.00010402,2]
[352420977,1739093435735,-500.0,0.00010402,2]
[352420978,1739093435745,-500.0,0.00010402,2]
[352420979,1739093436154,-500.0,0.00010402,2]
[352420980,1739093436181,-509.03263057,0.00010402,2]
[352420981,1739093436196,-903.92,0.00010402,2]
[352420982,1739093436205,-826.73,0.00010402,2]
[352420983,1739093436215,-500.0,0.00010402,2]
[352420984,1739093436224,-500.0,0.00010402,2]
[352420985,1739093436234,-500.0,0.00010402,2]
[352420986,1739093436243,-500.0,0.00010402,2]
[352420987,1739093436253,-444.66,0.00010402,2]
[352420988,1739093436261,-500.0,0.00010402,2]
[352420989,1739093436271,-577.09,0.00010402,2]
[352420990,1739093436280,-500.0,0.00010402,2]
[352420991,1739093436291,-500.0,0.00010402,2]
[352420992,1739093436300,-199.76,0.00010402,2]
[352420993,1739093436310,-505.51774938,0.00010402,2]
[352420994,1739093436319,-898.01,0.00010402,2]
[352420995,1739093436328,-511.05282809,0.00010402,2]
[352420996,1739093436338,-500.0,0.00010402,2]
[352420997,1739093436347,-500.0,0.00010402,2]
[352420998,1739093436356,-500.0,0.00010402,2]
[352420999,1739093436365,-500.0,0.00010402,2]
[352421000,1739093436375,-500.0,0.00010402,2]
[352421001,1739093436384,-500.0,0.00010402,2]
[352421002,1739093436393,-617.53,0.00010402,2]
[352421003,1739093436403,-500.0,0.00010402,2]
[352421004,1739093436412,-500.0,0.00010402,2]
[352421005,1739093436422,-500.0,0.00010402,2]
[352421006,1739093436431,-500.0,0.00010402,2]
[352421007,1739093436441,-563.32,0.00010402,2]
[352421008,1739093436451,-500.0,0.00010402,2]
[352421009,1739093436460,-500.0,0.00010402,2]
[352421010,1739093436470,-500.0,0.00010402,2]
[352421011,1739093436479,-500.0,0.00010402,2]
[352421012,1739093436489,-500.0,0.00010402,2]
[352421013,1739093436499,-343.62,0.00010402,2]
[352421014,1739093436508,-550.73,0.00010402,2]
[352421015,1739093436517,-370.36,0.00010402,2]
[352421016,1739093436527,-500.0,0.00010402,2]
[352421017,1739093436537,-500.0,0.00010402,2]
[352421018,1739093436546,-500.0,0.00010402,2]
[352421019,1739093436555,-500.0,0.00010402,2]
[352421020,1739093436565,-500.0,0.00010402,2]
[352421021,1739093436574,-500.0,0.00010402,2]
[352421022,1739093436583,-500.0,0.00010402,2]
[352421023,1739093436592,-500.0,0.00010402,2]
[352421024,1739093436602,-500.0,0.00010402,2]
[352421025,1739093436611,-500.0,0.00010402,2]
[352421026,1739093436621,-500.0,0.00010402,2]
[352421027,1739093436630,-500.0,0.00010402,2]
[352421028,1739093436639,-616.48,0.00010402,2]
[352421029,1739093436649,-871.06,0.00010402,2]
[352421030,1739093436658,-500.0,0.00010402,2]
[352421031,1739093436667,-163.39370363,0.00010402,2]
[352421032,1739093436676,-500.0,0.00010402,2]
[352421033,1739093436685,-500.0,0.00010402,2]
[352421034,1739093436694,-545.04,0.00010402,2]
[352421035,1739093436704,-500.0,0.00010402,2]
[352421036,1739093436713,-500.0,0.00010402,2]
[352421037,1739093436723,-500.0,0.00010402,2]
[352421038,1739093436732,-500.0,0.00010402,2]
[352421039,1739093436741,-500.0,0.00010402,2]
[352421040,1739093436750,-851.92,0.00010402,2]
[352421041,1739093436759,-500.0,0.00010402,2]
[352421042,1739093436769,-620.63,0.00010402,2]
[352421043,1739093436778,-500.0,0.00010402,2]
[352421044,1739093436788,-500.0,0.00010402,2]
[352421045,1739093436797,-500.0,0.00010402,2]
[352421046,1739093436807,-906.54,0.00010402,2]
[352421047,1739093436816,-527.5,0.00010402,2]
[352421048,1739093436826,-616.79,0.00010402,2]
[352421049,1739093436835,-500.0,0.00010402,2]
[352421050,1739093436845,-1351.22,0.00010402,2]
[352421051,1739093436855,-500.0,0.00010402,2]
[352421052,1739093436865,-793.34,0.00010402,2]
[352421053,1739093436875,-500.0,0.00010402,2]
[352421054,1739093436885,-500.0,0.00010402,2]
[352421055,1739093436895,-500.0,0.00010402,2]
[352421056,1739093436905,-500.0,0.00010402,2]
[352421057,1739093436915,-500.0,0.00010402,2]
[352421058,1739093436924,-925.01,0.00010402,2]
[352421059,1739093436934,-500.0,0.00010402,2]
[352421060,1739093436944,-500.0,0.00010402,2]
[352421061,1739093436953,-503.1317357,0.00010402,2]
[352421062,1739093436962,-500.0,0.00010402,2]
[352421063,1739093436972,-500.0,0.00010402,2]
[352421064,1739093436982,-500.0,0.00010402,2]
[352421065,1739093436991,-1614.31,0.00010402,2]
[352421066,1739093437001,-500.0,0.00010402,2]
[352421067,1739093437011,-1427.42,0.00010402,2]
[352421068,1739093437020,-1728.39,0.00010402,2]
[352421069,1739093437030,-500.0,0.00010402,2]
[352421070,1739093437040,-500.0,0.00010402,2]
[352421071,1739093437050,-500.0,0.00010402,2]
[352421072,1739093437060,-503.52654139,0.00010402,2]
[352421073,1739093437070,-1702.8,0.00010402,2]
[352421074,1739093437079,-500.0,0.00010402,2]
[352421075,1739093437088,-500.0,0.00010402,2]
[352421076,1739093437098,-500.0,0.00010402,2]
[352421077,1739093437111,-500.0,0.00010402,2]
[352421078,1739093437121,-610.08,0.00010402,2]
[352421079,1739093437130,-504.00421241,0.00010402,2]
[352421080,1739093437139,-500.0,0.00010402,2]
[352421081,1739093437149,-2941.1,0.00010402,2]
[352421082,1739093437159,-500.0,0.00010402,2]
[352421083,1739093437168,-500.0,0.00010402,2]
[352421084,1739093437177,-621.84,0.00010402,2]
[352421085,1739093437189,-257.94570765,0.00010402,2]
[352421086,1739093437199,-500.0,0.00010402,2]
[352421087,1739093437208,-1381.55,0.00010402,2]
[352421088,1739093437218,-500.0,0.00010402,2]
[352421089,1739093437227,-351.54,0.00010402,2]
[352421090,1739093437237,-500.0,0.00010402,2]
[352421091,1739093437246,-1411.04,0.00010402,2]
[352421092,1739093437255,-500.0,0.00010402,2]
[352421093,1739093437264,-500.0,0.00010402,2]
[352421094,1739093437274,-729.26,0.00010402,2]
[352421095,1739093437284,-500.0,0.00010402,2]
[352421096,1739093437294,-1399.99,0.00010402,2]
[352421097,1739093437303,-500.0,0.00010402,2]
[352421098,1739093437312,-500.0,0.00010402,2]
[352421099,1739093437322,-500.0,0.00010402,2]
[352421100,1739093437331,-500.0,0.00010402,2]
[352421101,1739093437340,-1974.4,0.00010402,2]
[352421102,1739093437350,-500.0,0.00010402,2]
[352421103,1739093437359,-1138.28,0.00010402,2]
[352421104,1739093437368,-646.8,0.00010402,2]
[352421105,1739093437377,-736.97,0.00010402,2]
[352421106,1739093437386,-1606.06,0.00010402,2]
[352421107,1739093437396,-500.0,0.00010402,2]
[352421109,1739093437405,-500.0,0.00010402,2]
[352421111,1739093437414,-500.0,0.00010402,2]
[352421113,1739093437423,-1655.64,0.00010402,2]
[352421115,1739093437432,-199.02,0.00010402,2]
[352421117,1739093437442,-500.0,0.00010402,2]
[352421118,1739093437451,-904.17,0.00010402,2]
[352421119,1739093437460,-500.0,0.00010402,2]
[352421120,1739093437469,-1000.0,0.00010402,2]
[352421121,1739093437478,-500.0,0.00010402,2]
[352421122,1739093437487,-500.0,0.00010402,2]
[352421123,1739093437496,-500.0,0.00010402,2]
[352421124,1739093437505,-1467.63,0.00010402,2]
[352421125,1739093437515,-501.9953405,0.00010402,2]
[352421126,1739093437524,-1058.84,0.00010402,2]
[352421127,1739093437532,-500.0,0.00010402,2]
[352421128,1739093437542,-500.0,0.00010402,2]
[352421129,1739093437551,-1247.5,0.00010402,2]
[352421130,1739093437560,-500.0,0.00010402,2]
[352421131,1739093437569,-518.2,0.00010402,2]
[352421132,1739093437578,-340.0,0.00010402,2]
[352421133,1739093437588,-500.0,0.00010402,2]
[352421134,1739093437597,-554.62,0.00010402,2]
[352421135,1739093437606,-500.0,0.00010402,2]
[352421136,1739093437615,-500.0,0.00010402,2]
[352421137,1739093437624,-501.77542222,0.00010402,2]
[352421138,1739093437633,-500.0,0.00010402,2]
[352421139,1739093437642,-500.0,0.00010402,2]
[352421140,1739093437651,-500.0,0.00010402,2]